[Event "Titled Tuesday Blitz February 21 Early 2023"]
[White "Sadubayev, Airat"]
[Black "Kramnik, Vladimir"]
[WhiteFideId "13713264"]
[BlackFideId "4101588"]
[WhiteElo "2320"]
[BlackElo "2753"]
[Result "0-1"]
[Round "07"]
[TimeControl "180+2"]
[Date "2023.02.21"]
[WhiteClock "0:00:02"]
[BlackClock "0:00:20"]

1. d4 {[%clk 0:02:59]}  Nf6 {[%clk 0:02:58]} 2. c4 {[%clk 0:02:59]}  e6 {[%clk 0:02:58]} 3. Nf3 {[%clk 0:02:59]}  Bb4+ {[%clk 0:02:57]} 4. Bd2 {[%clk 0:02:59]}  Bxd2+ {[%clk 0:02:56]} 5. Qxd2 {[%clk 0:02:58]}  O-O {[%clk 0:02:57]} 6. Nc3 {[%clk 0:02:57]}  d5 {[%clk 0:02:57]} 7. g3 {[%clk 0:02:51]}  dxc4 {[%clk 0:02:49]} 8. Ne5 {[%clk 0:02:38]}  Nc6 {[%clk 0:02:48]} 9. Nxc6 {[%clk 0:02:33]}  bxc6 {[%clk 0:02:48]} 10. Bg2 {[%clk 0:02:33]}  Rb8 {[%clk 0:02:48]} 11. Rc1 {[%clk 0:02:30]}  c5 {[%clk 0:02:46]} 12. dxc5 {[%clk 0:02:00]}  Qxd2+ {[%clk 0:02:45]} 13. Kxd2 {[%clk 0:02:00]}  Rxb2+ {[%clk 0:02:39]} 14. Rc2 {[%clk 0:02:00]}  Rb4 {[%clk 0:02:38]} 15. Rb1 {[%clk 0:01:55]}  Rd8+ {[%clk 0:02:37]} 16. Kc1 {[%clk 0:01:54]}  a5 {[%clk 0:02:30]} 17. Rcb2 {[%clk 0:01:49]}  Rxb2 {[%clk 0:02:25]} 18. Rxb2 {[%clk 0:01:49]}  Kf8 {[%clk 0:02:08]} 19. h3 {[%clk 0:01:44]}  Ke7 {[%clk 0:02:07]} 20. Rb5 {[%clk 0:01:42]}  Nd5 {[%clk 0:02:01]} 21. Kc2 {[%clk 0:01:29]}  Nb4+ {[%clk 0:01:37]} 22. Kc1 {[%clk 0:01:28]}  Nd5 {[%clk 0:01:34]} 23. Kc2 {[%clk 0:01:28]}  Nxc3 {[%clk 0:01:28]} 24. Kxc3 {[%clk 0:01:28]}  Rd1 {[%clk 0:01:24]} 25. Rxa5 {[%clk 0:01:17]}  Rc1+ {[%clk 0:01:20]} 26. Kd2 {[%clk 0:01:11]}  Rg1 {[%clk 0:01:20]} 27. Bf3 {[%clk 0:01:07]}  e5 {[%clk 0:01:20]} 28. Ra7 {[%clk 0:01:04]}  Bxh3 {[%clk 0:01:03]} 29. Rxc7+ {[%clk 0:01:03]}  Kf6 {[%clk 0:01:04]} 30. c6 {[%clk 0:00:53]}  Bf5 {[%clk 0:01:02]} 31. Bd5 {[%clk 0:00:47]}  c3+ {[%clk 0:00:46]} 32. Kxc3 {[%clk 0:00:46]}  Rc1+ {[%clk 0:00:46]} 33. Kb4 {[%clk 0:00:46]}  Be6 {[%clk 0:00:43]} 34. e4 {[%clk 0:00:42]}  g5 {[%clk 0:00:37]} 35. a4 {[%clk 0:00:37]}  h5 {[%clk 0:00:37]} 36. a5 {[%clk 0:00:28]}  h4 {[%clk 0:00:37]} 37. gxh4 {[%clk 0:00:27]}  gxh4 {[%clk 0:00:37]} 38. a6 {[%clk 0:00:25]}  h3 {[%clk 0:00:35]} 39. Bxe6 {[%clk 0:00:20]}  h2 {[%clk 0:00:33]} 40. Rxf7+ {[%clk 0:00:11]}  Kxe6 {[%clk 0:00:29]} 41. Rh7 {[%clk 0:00:11]}  h1=Q {[%clk 0:00:28]} 42. Rxh1 {[%clk 0:00:11]}  Rxh1 {[%clk 0:00:28]} 43. Kc5 {[%clk 0:00:09]}  Ra1 {[%clk 0:00:24]} 44. Kb6 {[%clk 0:00:05]}  Kd6 {[%clk 0:00:24]} 45. a7 {[%clk 0:00:02]}  Rb1+ {[%clk 0:00:24]} 46. Ka6 {[%clk 0:00:03]}  Kc7 {[%clk 0:00:23]} 47. Ka5 {[%clk 0:00:01]}  Ra1+ {[%clk 0:00:22]} 48. Kb5 {[%clk 0:00:02]}  Rxa7 {[%clk 0:00:20]} 0-1


[Site "https://www.chess.com"]

[Event "Titled Tuesday Blitz February 21 Early 2023"]
[White "Kravtsiv, Martyn"]
[Black "Fiorito, Joaquin"]
[WhiteFideId "14113147"]
[BlackFideId "180173"]
[WhiteElo "2598"]
[BlackElo "2405"]
[Result "0-1"]
[Round "07"]
[TimeControl "180+2"]
[Date "2023.02.21"]
[WhiteClock "0:02:01"]
[BlackClock "0:01:26"]

1. Nf3 {[%clk 0:03:00]}  d5 {[%clk 0:02:59]} 2. g3 {[%clk 0:03:01]}  Nf6 {[%clk 0:02:59]} 3. Bg2 {[%clk 0:03:02]}  Bf5 {[%clk 0:02:59]} 4. O-O {[%clk 0:03:02]}  e6 {[%clk 0:03:00]} 5. c4 {[%clk 0:03:01]}  c6 {[%clk 0:02:57]} 6. d3 {[%clk 0:02:59]}  dxc4 {[%clk 0:02:51]} 7. dxc4 {[%clk 0:03:00]}  Qxd1 {[%clk 0:02:52]} 8. Rxd1 {[%clk 0:02:59]}  Bc2 {[%clk 0:02:49]} 9. Rd2 {[%clk 0:02:57]}  Bg6 {[%clk 0:02:49]} 10. Ne5 {[%clk 0:02:55]}  Nbd7 {[%clk 0:02:49]} 11. Nxg6 {[%clk 0:02:54]}  hxg6 {[%clk 0:02:50]} 12. b3 {[%clk 0:02:53]}  O-O-O {[%clk 0:02:47]} 13. Bb2 {[%clk 0:02:53]}  Bc5 {[%clk 0:02:46]} 14. Nc3 {[%clk 0:02:51]}  Ne5 {[%clk 0:02:33]} 15. Rxd8+ {[%clk 0:02:45]}  Rxd8 {[%clk 0:02:34]} 16. Na4 {[%clk 0:02:44]}  Bd4 {[%clk 0:02:34]} 17. Rd1 {[%clk 0:02:42]}  Bxf2+ {[%clk 0:02:30]} 18. Kxf2 {[%clk 0:02:41]}  Rxd1 {[%clk 0:02:30]} 19. Bxe5 {[%clk 0:02:39]}  Ng4+ {[%clk 0:02:31]} 20. Kf3 {[%clk 0:02:39]}  Nxe5+ {[%clk 0:02:32]} 21. Ke4 {[%clk 0:02:38]}  Nd7 {[%clk 0:02:30]} 22. Nc3 {[%clk 0:02:36]}  Nc5+ {[%clk 0:02:26]} 23. Ke3 {[%clk 0:02:36]}  Rd8 {[%clk 0:02:26]} 24. h4 {[%clk 0:02:34]}  a5 {[%clk 0:02:25]} 25. Bh3 {[%clk 0:02:32]}  Kc7 {[%clk 0:02:25]} 26. Bg4 {[%clk 0:02:31]}  Nd7 {[%clk 0:02:24]} 27. Bf3 {[%clk 0:02:30]}  Ne5 {[%clk 0:02:23]} 28. Bg2 {[%clk 0:02:28]}  Ng4+ {[%clk 0:02:21]} 29. Kf4 {[%clk 0:02:27]}  Rd4+ {[%clk 0:02:16]} 30. e4 {[%clk 0:02:24]}  Rd2 {[%clk 0:01:47]} 31. Bf3 {[%clk 0:02:20]}  Nf6 {[%clk 0:01:46]} 32. Ke3 {[%clk 0:02:18]}  Rd8 {[%clk 0:01:39]} 33. Be2 {[%clk 0:02:11]}  Nd7 {[%clk 0:01:39]} 34. a3 {[%clk 0:02:08]}  Ne5 {[%clk 0:01:33]} 35. Kf4 {[%clk 0:02:07]}  Nd3+ {[%clk 0:01:31]} 36. Ke3 {[%clk 0:02:07]}  Nc1 {[%clk 0:01:28]} 37. b4 {[%clk 0:02:02]}  axb4 {[%clk 0:01:26]} 38. axb4 {[%clk 0:02:01]}  Nxe2 {[%clk 0:01:26]} 0-1


[Site "https://www.chess.com"]

[Event "Titled Tuesday Blitz February 21 Early 2023"]
[White "Rustemov, Alexander"]
[Black "Al-Tarboush, Ward"]
[WhiteFideId "4119002"]
[BlackFideId "7601450"]
[WhiteElo "2525"]
[BlackElo "2256"]
[Result "1-0"]
[Round "07"]
[TimeControl "180+2"]
[Date "2023.02.21"]
[WhiteClock "0:00:35"]
[BlackClock "0:00:03"]

1. d4 {[%clk 0:02:55]}  d5 {[%clk 0:02:58]} 2. c4 {[%clk 0:02:54]}  c6 {[%clk 0:02:58]} 3. Nc3 {[%clk 0:02:54]}  Nf6 {[%clk 0:02:58]} 4. e3 {[%clk 0:02:54]}  e6 {[%clk 0:02:49]} 5. Nf3 {[%clk 0:02:54]}  Nbd7 {[%clk 0:02:49]} 6. Qc2 {[%clk 0:02:54]}  Bd6 {[%clk 0:02:47]} 7. Bd2 {[%clk 0:02:53]}  O-O {[%clk 0:02:45]} 8. O-O-O {[%clk 0:02:54]}  dxc4 {[%clk 0:02:42]} 9. Bxc4 {[%clk 0:02:54]}  b5 {[%clk 0:02:42]} 10. Bd3 {[%clk 0:02:54]}  b4 {[%clk 0:02:39]} 11. Ne4 {[%clk 0:02:51]}  Nxe4 {[%clk 0:02:38]} 12. Bxe4 {[%clk 0:02:51]}  Nf6 {[%clk 0:02:39]} 13. Bd3 {[%clk 0:02:47]}  a5 {[%clk 0:02:38]} 14. e4 {[%clk 0:02:39]}  Be7 {[%clk 0:02:04]} 15. Kb1 {[%clk 0:02:34]}  a4 {[%clk 0:02:02]} 16. Ne5 {[%clk 0:02:17]}  Bb7 {[%clk 0:01:54]} 17. Be3 {[%clk 0:02:10]}  Qa5 {[%clk 0:01:47]} 18. Nxc6 {[%clk 0:02:03]}  Bxc6 {[%clk 0:01:46]} 19. Qxc6 {[%clk 0:02:04]}  Rab8 {[%clk 0:00:55]} 20. f3 {[%clk 0:01:53]}  a3 {[%clk 0:00:47]} 21. Qa6 {[%clk 0:01:50]}  Qh5 {[%clk 0:00:39]} 22. b3 {[%clk 0:01:46]}  Qg6 {[%clk 0:00:36]} 23. g4 {[%clk 0:01:39]}  e5 {[%clk 0:00:29]} 24. dxe5 {[%clk 0:01:31]}  Ra8 {[%clk 0:00:30]} 25. Qc4 {[%clk 0:01:24]}  Rfc8 {[%clk 0:00:29]} 26. Qd4 {[%clk 0:01:07]}  Bc5 {[%clk 0:00:29]} 27. Qa1 {[%clk 0:01:00]}  Bxe3 {[%clk 0:00:27]} 28. exf6 {[%clk 0:01:01]}  Rc3 {[%clk 0:00:21]} 29. fxg7 {[%clk 0:00:55]}  Rac8 {[%clk 0:00:19]} 30. Bc4 {[%clk 0:00:55]}  Qxg7 {[%clk 0:00:11]} 31. Rd7 {[%clk 0:00:53]}  Qe5 {[%clk 0:00:07]} 32. Rxf7 {[%clk 0:00:49]}  Kh8 {[%clk 0:00:07]} 33. Rf5 {[%clk 0:00:39]}  Qd4 {[%clk 0:00:06]} 34. Rd5 {[%clk 0:00:38]}  Qf6 {[%clk 0:00:06]} 35. Rd3 {[%clk 0:00:38]}  Qe5 {[%clk 0:00:03]} 36. Rxc3 {[%clk 0:00:37]}  bxc3 {[%clk 0:00:04]} 37. Kc2 {[%clk 0:00:37]}  Qd4 {[%clk 0:00:03]} 38. Rd1 {[%clk 0:00:36]}  Qe5 {[%clk 0:00:03]} 39. Qxc3 {[%clk 0:00:35]} 1-0


[Site "https://www.chess.com"]

[Event "Titled Tuesday Blitz February 21 Early 2023"]
[White "Dixit, Nikhil"]
[Black "Yuan, Qingyu"]
[WhiteFideId "5059534"]
[BlackFideId "8609772"]
[WhiteElo "2257"]
[BlackElo "2373"]
[Result "1/2-1/2"]
[Round "07"]
[TimeControl "180+2"]
[Date "2023.02.21"]
[WhiteClock "0:00:14"]
[BlackClock "0:00:04"]

1. e4 {[%clk 0:03:00]}  c5 {[%clk 0:02:53]} 2. Nf3 {[%clk 0:02:59]}  d6 {[%clk 0:02:52]} 3. Bb5+ {[%clk 0:02:59]}  Nd7 {[%clk 0:02:52]} 4. d4 {[%clk 0:02:54]}  cxd4 {[%clk 0:02:49]} 5. Qxd4 {[%clk 0:02:55]}  a6 {[%clk 0:02:45]} 6. Bxd7+ {[%clk 0:02:55]}  Bxd7 {[%clk 0:02:46]} 7. Nc3 {[%clk 0:02:55]}  Nf6 {[%clk 0:02:44]} 8. Bg5 {[%clk 0:02:54]}  e6 {[%clk 0:02:34]} 9. e5 {[%clk 0:02:50]}  dxe5 {[%clk 0:02:26]} 10. Nxe5 {[%clk 0:02:51]}  Bc6 {[%clk 0:01:47]} 11. Qxd8+ {[%clk 0:02:48]}  Rxd8 {[%clk 0:01:46]} 12. Nxc6 {[%clk 0:02:49]}  bxc6 {[%clk 0:01:47]} 13. Bxf6 {[%clk 0:02:44]}  gxf6 {[%clk 0:01:46]} 14. Ke2 {[%clk 0:02:44]}  Bb4 {[%clk 0:01:43]} 15. Rhd1 {[%clk 0:02:34]}  Bxc3 {[%clk 0:01:35]} 16. Rxd8+ {[%clk 0:02:32]}  Kxd8 {[%clk 0:01:36]} 17. bxc3 {[%clk 0:02:33]}  Kc7 {[%clk 0:01:36]} 18. Rd1 {[%clk 0:02:30]}  Rg8 {[%clk 0:01:28]} 19. g3 {[%clk 0:02:26]}  c5 {[%clk 0:01:15]} 20. Rd3 {[%clk 0:02:21]}  Rg4 {[%clk 0:01:15]} 21. Rf3 {[%clk 0:02:11]}  f5 {[%clk 0:01:15]} 22. h3 {[%clk 0:01:51]}  Ra4 {[%clk 0:01:14]} 23. g4 {[%clk 0:01:51]}  f4 {[%clk 0:01:12]} 24. Kd2 {[%clk 0:01:38]}  e5 {[%clk 0:01:07]} 25. Rd3 {[%clk 0:01:36]}  f6 {[%clk 0:00:56]} 26. Rd5 {[%clk 0:01:36]}  Kc6 {[%clk 0:00:46]} 27. Rd8 {[%clk 0:01:34]}  Rxa2 {[%clk 0:00:46]} 28. Rf8 {[%clk 0:01:31]}  Ra1 {[%clk 0:00:45]} 29. Rxf6+ {[%clk 0:01:31]}  Kd5 {[%clk 0:00:45]} 30. Rh6 {[%clk 0:01:29]}  Ke4 {[%clk 0:00:40]} 31. Rxh7 {[%clk 0:01:23]}  Kf3 {[%clk 0:00:39]} 32. g5 {[%clk 0:01:15]}  Rg1 {[%clk 0:00:35]} 33. h4 {[%clk 0:01:12]}  e4 {[%clk 0:00:35]} 34. Re7 {[%clk 0:01:12]}  Rg2 {[%clk 0:00:34]} 35. Ke1 {[%clk 0:01:05]}  Rg1+ {[%clk 0:00:34]} 36. Kd2 {[%clk 0:01:05]}  Rf1 {[%clk 0:00:34]} 37. g6 {[%clk 0:01:04]}  Rxf2+ {[%clk 0:00:35]} 38. Kc1 {[%clk 0:01:02]}  Rg2 {[%clk 0:00:24]} 39. g7 {[%clk 0:00:49]}  Ke3 {[%clk 0:00:24]} 40. h5 {[%clk 0:00:49]}  f3 {[%clk 0:00:24]} 41. h6 {[%clk 0:00:49]}  f2 {[%clk 0:00:25]} 42. Rf7 {[%clk 0:00:48]}  Ke2 {[%clk 0:00:12]} 43. h7 {[%clk 0:00:44]}  Rxg7 {[%clk 0:00:09]} 44. Rxf2+ {[%clk 0:00:44]}  Kxf2 {[%clk 0:00:10]} 45. h8=Q {[%clk 0:00:45]}  Rg1+ {[%clk 0:00:09]} 46. Kb2 {[%clk 0:00:41]}  e3 {[%clk 0:00:10]} 47. Qh2+ {[%clk 0:00:41]}  Rg2 {[%clk 0:00:06]} 48. Qh4+ {[%clk 0:00:41]}  Kf3 {[%clk 0:00:06]} 49. Qh5+ {[%clk 0:00:41]}  Kf2 {[%clk 0:00:06]} 50. Qxc5 {[%clk 0:00:41]}  Rg3 {[%clk 0:00:03]} 51. Qd4 {[%clk 0:00:39]}  Rf3 {[%clk 0:00:02]} 52. c4 {[%clk 0:00:38]}  Kf1 {[%clk 0:00:02]} 53. Qe4 {[%clk 0:00:36]}  Kf2 {[%clk 0:00:02]} 54. Qh4+ {[%clk 0:00:34]}  Kg2 {[%clk 0:00:02]} 55. Qg5+ {[%clk 0:00:33]}  Kf2 {[%clk 0:00:02]} 56. Qh4+ {[%clk 0:00:22]}  Kf1 {[%clk 0:00:02]} 57. Qh1+ {[%clk 0:00:21]}  Kf2 {[%clk 0:00:02]} 58. Qh2+ {[%clk 0:00:21]}  Kf1 {[%clk 0:00:03]} 59. c5 {[%clk 0:00:20]}  e2 {[%clk 0:00:03]} 60. Qh1+ {[%clk 0:00:20]}  Kf2 {[%clk 0:00:03]} 61. Qh2+ {[%clk 0:00:21]}  Kf1 {[%clk 0:00:04]} 62. Qh1+ {[%clk 0:00:14]}  Kf2 {[%clk 0:00:04]} 63. Qh2+ {[%clk 0:00:14]}  Kf1 {[%clk 0:00:04]} 1/2-1/2


[Site "https://www.chess.com"]

[Event "Titled Tuesday Blitz February 21 Early 2023"]
[White "Maltsevskaya, Aleksandra"]
[Black "Pichot, Alan"]
[WhiteFideId "24174041"]
[BlackFideId "110973"]
[WhiteElo "2390"]
[BlackElo "2638"]
[Result "0-1"]
[Round "07"]
[TimeControl "180+2"]
[Date "2023.02.21"]
[WhiteClock "0:00:52"]
[BlackClock "0:01:00"]

1. Nf3 {[%clk 0:02:41]}  g6 {[%clk 0:02:59]} 2. g3 {[%clk 0:02:41]}  Bg7 {[%clk 0:03:00]} 3. Bg2 {[%clk 0:02:41]}  Nf6 {[%clk 0:03:01]} 4. O-O {[%clk 0:02:42]}  O-O {[%clk 0:03:02]} 5. d3 {[%clk 0:02:42]}  d5 {[%clk 0:02:50]} 6. Nbd2 {[%clk 0:02:42]}  c5 {[%clk 0:02:50]} 7. e4 {[%clk 0:02:42]}  Nc6 {[%clk 0:02:51]} 8. exd5 {[%clk 0:02:42]}  Nxd5 {[%clk 0:02:51]} 9. Nc4 {[%clk 0:02:43]}  b6 {[%clk 0:02:50]} 10. a4 {[%clk 0:02:42]}  Bb7 {[%clk 0:02:50]} 11. c3 {[%clk 0:02:43]}  Qc7 {[%clk 0:02:49]} 12. a5 {[%clk 0:02:40]}  Rad8 {[%clk 0:02:45]} 13. axb6 {[%clk 0:02:40]}  axb6 {[%clk 0:02:41]} 14. Qb3 {[%clk 0:02:40]}  h6 {[%clk 0:02:40]} 15. Re1 {[%clk 0:02:40]}  e5 {[%clk 0:02:29]} 16. Nfd2 {[%clk 0:02:34]}  Kh7 {[%clk 0:02:23]} 17. Na3 {[%clk 0:02:23]}  Na5 {[%clk 0:02:22]} 18. Qc2 {[%clk 0:02:24]}  f5 {[%clk 0:02:18]} 19. Ndc4 {[%clk 0:02:24]}  Nxc4 {[%clk 0:02:17]} 20. dxc4 {[%clk 0:02:24]}  Nf6 {[%clk 0:02:11]} 21. Nb5 {[%clk 0:02:23]}  Qb8 {[%clk 0:02:10]} 22. Bxb7 {[%clk 0:02:20]}  Qxb7 {[%clk 0:02:11]} 23. Rxe5 {[%clk 0:01:59]}  Qf3 {[%clk 0:02:04]} 24. Bf4 {[%clk 0:01:45]}  Ne4 {[%clk 0:01:57]} 25. Re7 {[%clk 0:01:43]}  Rd2 {[%clk 0:01:46]} 26. Qxd2 {[%clk 0:01:16]}  Nxd2 {[%clk 0:01:44]} 27. Bxd2 {[%clk 0:01:16]}  Kg8 {[%clk 0:01:29]} 28. Raa7 {[%clk 0:01:11]}  Bf6 {[%clk 0:01:23]} 29. Red7 {[%clk 0:01:09]}  Re8 {[%clk 0:01:02]} 30. Nd6 {[%clk 0:00:55]}  Re2 {[%clk 0:01:01]} 31. Rac7 {[%clk 0:00:52]}  Qxf2+ {[%clk 0:01:00]} 0-1


[Site "https://www.chess.com"]

[Event "Titled Tuesday Blitz February 21 Early 2023"]
[White "Urazayev, Arystanbek"]
[Black "Ordekalog"]
[WhiteFideId "13709810"]
[WhiteElo "2460"]
[BlackElo "2560"]
[Result "1-0"]
[Round "07"]
[TimeControl "180+2"]
[Date "2023.02.21"]
[WhiteClock "0:00:16"]
[BlackClock "0:00:02"]

1. d4 {[%clk 0:02:56]}  d5 {[%clk 0:02:59]} 2. c4 {[%clk 0:02:57]}  e6 {[%clk 0:02:58]} 3. Nf3 {[%clk 0:02:58]}  c5 {[%clk 0:02:58]} 4. cxd5 {[%clk 0:02:57]}  exd5 {[%clk 0:02:57]} 5. Nc3 {[%clk 0:02:56]}  Nc6 {[%clk 0:02:57]} 6. e3 {[%clk 0:02:53]}  Nf6 {[%clk 0:02:56]} 7. Bb5 {[%clk 0:02:53]}  Bd6 {[%clk 0:02:55]} 8. dxc5 {[%clk 0:02:54]}  Bxc5 {[%clk 0:02:54]} 9. O-O {[%clk 0:02:54]}  O-O {[%clk 0:02:54]} 10. b3 {[%clk 0:02:54]}  Bg4 {[%clk 0:02:52]} 11. Bb2 {[%clk 0:02:55]}  Rc8 {[%clk 0:02:48]} 12. Be2 {[%clk 0:02:52]}  a6 {[%clk 0:02:47]} 13. Rc1 {[%clk 0:02:51]}  Ba7 {[%clk 0:02:46]} 14. Na4 {[%clk 0:02:52]}  Qd6 {[%clk 0:02:40]} 15. h3 {[%clk 0:02:36]}  Bf5 {[%clk 0:02:22]} 16. Nd4 {[%clk 0:02:20]}  Be4 {[%clk 0:02:14]} 17. Nxc6 {[%clk 0:02:12]}  bxc6 {[%clk 0:02:12]} 18. Bxa6 {[%clk 0:02:08]}  Bb8 {[%clk 0:02:10]} 19. f4 {[%clk 0:02:08]}  Ba7 {[%clk 0:01:57]} 20. Bd4 {[%clk 0:02:08]}  c5 {[%clk 0:01:50]} 21. Bxf6 {[%clk 0:02:05]}  Qxf6 {[%clk 0:01:43]} 22. Bxc8 {[%clk 0:02:04]}  Rxc8 {[%clk 0:01:44]} 23. Qg4 {[%clk 0:01:47]}  Bf5 {[%clk 0:01:35]} 24. Qg5 {[%clk 0:01:47]}  Qe6 {[%clk 0:01:22]} 25. Nxc5 {[%clk 0:01:37]}  Bxc5 {[%clk 0:01:22]} 26. Rxc5 {[%clk 0:01:34]}  Qxe3+ {[%clk 0:01:22]} 27. Kh2 {[%clk 0:01:35]}  Qxc5 {[%clk 0:01:22]} 28. Qxf5 {[%clk 0:01:35]}  Rd8 {[%clk 0:01:19]} 29. Rd1 {[%clk 0:01:33]}  Qa5 {[%clk 0:01:15]} 30. Qe5 {[%clk 0:01:26]}  h6 {[%clk 0:01:14]} 31. a4 {[%clk 0:01:25]}  Qb4 {[%clk 0:01:08]} 32. Rxd5 {[%clk 0:01:13]}  Rxd5 {[%clk 0:01:09]} 33. Qxd5 {[%clk 0:01:14]}  Qxf4+ {[%clk 0:01:08]} 34. g3 {[%clk 0:01:14]}  Qf2+ {[%clk 0:01:08]} 35. Qg2 {[%clk 0:01:15]}  Qb6 {[%clk 0:01:05]} 36. Qa2 {[%clk 0:01:13]}  Qa5 {[%clk 0:01:04]} 37. h4 {[%clk 0:01:12]}  g5 {[%clk 0:01:03]} 38. hxg5 {[%clk 0:01:11]}  hxg5 {[%clk 0:01:02]} 39. Qe2 {[%clk 0:01:00]}  Qb4 {[%clk 0:00:54]} 40. Qe8+ {[%clk 0:00:59]}  Kg7 {[%clk 0:00:53]} 41. Qe5+ {[%clk 0:00:59]}  f6 {[%clk 0:00:53]} 42. Qc7+ {[%clk 0:00:57]}  Kh6 {[%clk 0:00:52]} 43. Qc2 {[%clk 0:00:56]}  g4 {[%clk 0:00:34]} 44. Qa2 {[%clk 0:00:44]}  f5 {[%clk 0:00:32]} 45. a5 {[%clk 0:00:41]}  f4 {[%clk 0:00:32]} 46. a6 {[%clk 0:00:39]}  Qc3 {[%clk 0:00:24]} 47. Qf2 {[%clk 0:00:26]}  fxg3+ {[%clk 0:00:19]} 48. Qxg3 {[%clk 0:00:26]}  Qd2+ {[%clk 0:00:16]} 49. Qg2 {[%clk 0:00:18]}  Qf4+ {[%clk 0:00:15]} 50. Kg1 {[%clk 0:00:19]}  Qc1+ {[%clk 0:00:14]} 51. Qf1 {[%clk 0:00:20]}  Qe3+ {[%clk 0:00:12]} 52. Kg2 {[%clk 0:00:20]}  Qe4+ {[%clk 0:00:10]} 53. Kf2 {[%clk 0:00:19]}  Qf3+ {[%clk 0:00:09]} 54. Ke1 {[%clk 0:00:19]}  Qc3+ {[%clk 0:00:08]} 55. Ke2 {[%clk 0:00:18]}  Qc2+ {[%clk 0:00:06]} 56. Ke3 {[%clk 0:00:15]}  Qxb3+ {[%clk 0:00:06]} 57. Qd3 {[%clk 0:00:16]}  Qe6+ {[%clk 0:00:05]} 58. Kf4 {[%clk 0:00:13]}  Qf6+ {[%clk 0:00:03]} 59. Kxg4 {[%clk 0:00:12]}  Qe6+ {[%clk 0:00:03]} 60. Kf4 {[%clk 0:00:12]}  Qf6+ {[%clk 0:00:03]} 61. Ke4 {[%clk 0:00:13]}  Qg6+ {[%clk 0:00:03]} 62. Kd4 {[%clk 0:00:13]}  Qb6+ {[%clk 0:00:03]} 63. Kc3 {[%clk 0:00:14]}  Qa5+ {[%clk 0:00:03]} 64. Kc2 {[%clk 0:00:14]}  Qa2+ {[%clk 0:00:02]} 65. Kd1 {[%clk 0:00:15]}  Qa1+ {[%clk 0:00:02]} 66. Ke2 {[%clk 0:00:16]} 1-0


[Site "https://www.chess.com"]

[Event "Titled Tuesday Blitz February 21 Early 2023"]
[White "Kislinsky, Alexey"]
[Black "Vovk, Orest"]
[WhiteFideId "14108801"]
[BlackFideId "14113490"]
[WhiteElo "2357"]
[BlackElo "2315"]
[Result "0-1"]
[Round "07"]
[TimeControl "180+2"]
[Date "2023.02.21"]
[WhiteClock "0:00:05"]
[BlackClock "0:00:07"]

1. e4 {[%clk 0:03:00]}  g5 {[%clk 0:02:53]} 2. Nc3 {[%clk 0:02:59]}  Bg7 {[%clk 0:02:50]} 3. h4 {[%clk 0:02:59]}  Bxc3 {[%clk 0:02:40]} 4. dxc3 {[%clk 0:02:55]}  g4 {[%clk 0:02:39]} 5. Qxg4 {[%clk 0:02:53]}  Nf6 {[%clk 0:02:39]} 6. Qe2 {[%clk 0:02:47]}  d5 {[%clk 0:02:36]} 7. e5 {[%clk 0:02:42]}  Ne4 {[%clk 0:02:36]} 8. Nf3 {[%clk 0:02:28]}  Bg4 {[%clk 0:02:33]} 9. Qe3 {[%clk 0:02:24]}  Nc6 {[%clk 0:02:29]} 10. Bb5 {[%clk 0:02:23]}  Bd7 {[%clk 0:02:14]} 11. Bxc6 {[%clk 0:02:20]}  bxc6 {[%clk 0:02:07]} 12. Ng5 {[%clk 0:02:18]}  Bf5 {[%clk 0:01:49]} 13. Bd2 {[%clk 0:02:11]}  h6 {[%clk 0:01:42]} 14. Nxe4 {[%clk 0:02:10]}  Bxe4 {[%clk 0:01:43]} 15. O-O-O {[%clk 0:02:10]}  Qc8 {[%clk 0:01:36]} 16. f3 {[%clk 0:02:08]}  Bh7 {[%clk 0:01:22]} 17. g4 {[%clk 0:01:59]}  Qa6 {[%clk 0:01:20]} 18. a3 {[%clk 0:01:18]}  Qa4 {[%clk 0:01:13]} 19. Kb1 {[%clk 0:01:17]}  Bxc2+ {[%clk 0:01:05]} 20. Ka1 {[%clk 0:01:17]}  Bxd1 {[%clk 0:01:03]} 21. e6 {[%clk 0:01:17]}  f6 {[%clk 0:00:57]} 22. Qc5 {[%clk 0:01:05]}  Bxf3 {[%clk 0:00:47]} 23. Re1 {[%clk 0:01:04]}  Be4 {[%clk 0:00:45]} 24. Bf4 {[%clk 0:00:56]}  Rb8 {[%clk 0:00:37]} 25. Bxc7 {[%clk 0:00:53]}  Rb7 {[%clk 0:00:30]} 26. Bf4 {[%clk 0:00:48]}  Rg8 {[%clk 0:00:20]} 27. g5 {[%clk 0:00:43]}  hxg5 {[%clk 0:00:19]} 28. hxg5 {[%clk 0:00:43]}  fxg5 {[%clk 0:00:20]} 29. Bg3 {[%clk 0:00:33]}  Rb6 {[%clk 0:00:19]} 30. Qf2 {[%clk 0:00:28]}  Rf8 {[%clk 0:00:14]} 31. Qh2 {[%clk 0:00:28]}  Qc2 {[%clk 0:00:12]} 32. Qxc2 {[%clk 0:00:16]}  Bxc2 {[%clk 0:00:13]} 33. Be5 {[%clk 0:00:15]}  Bf5 {[%clk 0:00:12]} 34. b4 {[%clk 0:00:15]}  Bxe6 {[%clk 0:00:11]} 35. Bd4 {[%clk 0:00:14]}  Kd7 {[%clk 0:00:10]} 36. Rg1 {[%clk 0:00:12]}  g4 {[%clk 0:00:10]} 37. a4 {[%clk 0:00:12]}  Rb7 {[%clk 0:00:09]} 38. a5 {[%clk 0:00:12]}  Rf4 {[%clk 0:00:09]} 39. Kb2 {[%clk 0:00:13]}  Rxd4 {[%clk 0:00:08]} 40. cxd4 {[%clk 0:00:13]}  Rxb4+ {[%clk 0:00:08]} 41. Kc3 {[%clk 0:00:14]}  Rc4+ {[%clk 0:00:09]} 42. Kd3 {[%clk 0:00:15]}  Ra4 {[%clk 0:00:09]} 43. Ke3 {[%clk 0:00:14]}  Ra3+ {[%clk 0:00:10]} 44. Kf4 {[%clk 0:00:15]}  Rxa5 {[%clk 0:00:10]} 45. Ke5 {[%clk 0:00:15]}  Ra3 {[%clk 0:00:10]} 46. Re1 {[%clk 0:00:15]}  g3 {[%clk 0:00:10]} 47. Kf4 {[%clk 0:00:15]}  g2 {[%clk 0:00:10]} 48. Rb1 {[%clk 0:00:15]}  Bh3 {[%clk 0:00:07]} 49. Ke5 {[%clk 0:00:12]}  Re3+ {[%clk 0:00:06]} 50. Kf4 {[%clk 0:00:10]}  Re2 {[%clk 0:00:07]} 51. Kg3 {[%clk 0:00:07]}  Bf5 {[%clk 0:00:07]} 52. Ra1 {[%clk 0:00:07]}  Be4 {[%clk 0:00:07]} 53. Kh2 {[%clk 0:00:07]}  Rf2 {[%clk 0:00:07]} 54. Rxa7+ {[%clk 0:00:06]}  Kd6 {[%clk 0:00:07]} 55. Ra8 {[%clk 0:00:06]}  Rf1 {[%clk 0:00:07]} 56. Rd8+ {[%clk 0:00:05]}  Kc7 {[%clk 0:00:06]} 57. Rg8 {[%clk 0:00:05]}  Rh1+ {[%clk 0:00:07]} 0-1


[Site "https://www.chess.com"]